bitfinex/quotes_SOLUSD_20250410
["timestamp","ask_amount","ask_price","bid_price","bid_amount"]
[1744311668460,8.9762,111.41,111.38,25.19240287]
[1744311668878,34.16760287,111.42,111.38,25.19240287]
[1744311669089,34.16760287,111.42,111.39,9.86]
[1744311669297,34.16760287,111.42,111.39,35.05240287]
[1744311669477,34.16760287,111.42,111.39,9.86]
[1744311670084,34.16700287,111.43,111.39,35.05240287]
[1744311670280,8.9746,111.43,111.39,44.02980287]
[1744311670493,8.9746,111.43,111.4,25.19240287]
[1744311670869,8.9746,111.43,111.39,44.02980287]
[1744311671393,8.9746,111.43,111.4,25.19240287]
[1744311671604,8.9722,111.46,111.42,25.19240287]
[1744311671893,25.19240287,111.45,111.41,25.19240287]
[1744311672067,25.19240287,111.44,111.4,25.19240287]
[1744311672264,25.19240287,111.44,111.39,38.8374]
[1744311672463,25.19240287,111.45,111.41,25.19240287]
[1744311672884,34.16460287,111.46,111.42,25.19240287]
[1744311673279,34.16340287,111.47,111.43,25.19240287]
[1744311674577,25.19240287,111.46,111.42,34.16740287]
[1744311674786,25.19240287,111.45,111.39,110.86]
[1744311674992,25.19240287,111.42,111.39,9.86]
[1744311675795,25.19240287,111.43,111.39,35.05240287]
[1744311675994,37.6613,111.46,111.39,35.05240287]
[1744311676199,37.6613,111.46,111.39,9.86]
[1744311676200,25.19240287,111.43,111.39,9.86]
[1744311676384,25.19240287,111.41,111.39,9.86]
[1744311676698,25.19240287,111.42,111.39,9.86]
[1744311677006,10.4902,111.43,111.39,44.02980287]
[1744311677183,34.16700287,111.43,111.39,44.02980287]
[1744311677384,34.16700287,111.43,111.39,35.05240287]
[1744311677587,34.16700287,111.43,111.39,44.02970287]
[1744311677899,25.19240287,111.42,111.39,9.86]
[1744311678288,34.16700287,111.43,111.39,44.02960287]
[1744311678600,25.19240287,111.44,111.4,25.19240287]
[1744311679111,34.16640287,111.44,111.4,25.19240287]
[1744311680105,34.16640287,111.44,111.4,34.16880287]
[1744311680394,34.16500287,111.45,111.41,25.19240287]
[1744311680810,8.9726,111.45,111.42,25.19240287]
[1744311681191,34.16500287,111.45,111.41,25.19240287]
[1744311681412,8.9726,111.45,111.42,25.19240287]
[1744311681712,8.9726,111.45,111.4,15.0674]
[1744311681892,8.9726,111.45,111.42,25.19240287]
[1744311684293,8.9737,111.44,111.4,40.25960287]
[1744311684484,8.9737,111.44,111.41,25.19240287]
[1744311685206,8.9718,111.46,111.41,25.19240287]
[1744311685501,34.16420287,111.46,111.42,25.19240287]
[1744311685802,25.19240287,111.45,111.41,25.19240287]
[1744311686389,34.16550287,111.45,111.41,25.19240287]
[1744311686700,8.9721,111.46,111.42,25.19240287]
[1744311686897,8.9721,111.46,111.41,34.16790287]
[1744311687101,25.19240287,111.45,111.41,34.16790287]
[1744311687613,25.19240287,111.44,111.4,15.0672]
[1744311688107,25.19240287,111.44,111.4,40.25960287]
[1744311688281,34.16580287,111.44,111.4,40.25960287]
[1744311688681,34.16580287,111.44,111.4,15.0672]
[1744311688900,8.971,111.47,111.4,15.0672]
[1744311689107,25.19240287,111.45,111.41,25.19240287]
[1744311689304,8.971,111.47,111.41,25.19240287]
[1744311689305,25.19240287,111.46,111.41,25.19240287]
[1744311689497,25.19240287,111.45,111.41,25.19240287]
[1744311690099,8.971,111.47,111.42,25.19240287]
[1744311690299,25.19240287,111.46,111.42,25.19240287]
[1744311690793,8.971,111.47,111.41,34.16750287]
[1744311690794,25.19240287,111.45,111.41,34.16750287]
[1744311690987,25.19240287,111.45,111.41,8.9751]
[1744311691189,8.9723,111.46,111.43,25.19240287]
[1744311691581,34.16470287,111.46,111.42,25.19240287]
[1744311691979,34.16470287,111.46,111.43,9.86]
[1744311692185,8.9723,111.46,111.43,35.05240287]
[1744311692411,34.16370287,111.47,111.43,35.05240287]
[1744311692704,8.9713,111.47,111.43,35.05240287]
[1744311692895,25.19240287,111.46,111.43,9.86]
[1744311693080,34.16470287,111.46,111.43,9.86]
[1744311693284,8.9723,111.46,111.44,9.86]
[1744311694489,34.16470287,111.46,111.44,9.86]
[1744311695510,8.9723,111.46,111.44,9.86]
[1744311695712,34.16470287,111.46,111.44,9.86]
[1744311697109,8.9723,111.46,111.44,9.86]
[1744311697414,25.19240287,111.45,111.44,9.86]
[1744311697911,25.19240287,111.46,111.44,9.86]
[1744311698284,25.19240287,111.45,111.44,9.86]
[1744311698516,25.19240287,111.46,111.44,9.86]
[1744311698987,25.19240287,111.47,111.44,9.86]
[1744311699189,34.16260287,111.48,111.44,35.05240287]
[1744311699499,25.19240287,111.47,111.44,9.86]
[1744311700882,25.19240287,111.46,111.44,9.86]
[1744311701088,25.19240287,111.45,111.44,9.86]
[1744311701387,34.16500287,111.45,111.44,9.86]
[1744311702098,34.16500287,111.45,111.42,9.86]
[1744311703008,8.9726,111.45,111.42,9.86]
[1744311703211,34.16500287,111.45,111.42,9.86]
[1744311703717,25.19240287,111.43,111.42,9.86]
[1744311703917,25.19240287,111.43,111.39,20.0]
[1744311704096,25.19240287,111.42,111.39,20.0]
[1744311704919,1.5564,111.44,111.39,20.0]
[1744311705109,25.19240287,111.42,111.39,20.0]
[1744311705504,34.16760287,111.42,111.39,20.0]
[1744311705807,25.19240287,111.4,111.37,427.78086157]
[1744311706004,25.19240287,111.4,111.37,346.78086157]
[1744311706315,25.19240287,111.4,111.37,337.66]
[1744311707517,34.16880287,111.41,111.37,371.83110287]
[1744311707717,34.16880287,111.41,111.37,362.85240287]
[1744311707917,8.9764,111.41,111.37,337.66]
[1744311708119,25.19240287,111.4,111.37,337.66]
[1744311708318,25.19240287,111.4,111.37,346.639]
[1744311708616,34.16880287,111.41,111.37,371.83140287]
[1744311708824,25.19240287,111.41,111.37,371.83140287]
[1744311709124,34.16770287,111.42,111.38,25.19240287]
[1744311709494,25.19240287,111.41,111.37,371.83140287]
[1744311709695,25.19240287,111.41,111.37,362.85240287]
[1744311710233,8.9753,111.42,111.37,362.85240287]
[1744311710400,34.16770287,111.42,111.38,25.19240287]
[1744311710596,25.19240287,111.41,111.37,362.85240287]
[1744311710798,25.19240287,111.41,111.37,371.83140287]
[1744311711098,8.9742,111.43,111.39,25.19240287]
[1744311711293,8.9738,111.44,111.4,25.19240287]
[1744311711501,34.16620287,111.44,111.4,25.19240287]
[1744311711705,25.19240287,111.44,111.4,25.19240287]
[1744311712616,25.19240287,111.43,111.39,53.29260287]
[1744311713005,25.19240287,111.43,111.39,62.26990287]
[1744311713321,8.9739,111.44,111.4,25.19240287]
[1744311713497,34.16630287,111.44,111.4,25.19240287]
[1744311714295,25.19240287,111.46,111.42,25.19240287]
[1744311714502,8.9714,111.47,111.41,20.14216157]
[1744311714503,25.19240287,111.47,111.43,55.05240287]
[1744311714706,34.16300287,111.48,111.44,25.19240287]
[1744311714908,34.16300287,111.48,111.44,34.16540287]
[1744311715110,8.9706,111.48,111.44,34.16540287]
[1744311715300,0.03,111.49,111.46,25.19240287]
[1744311715999,34.19180287,111.49,111.45,45.33456444]
[1744311716199,25.19240287,111.47,111.44,17.1977]
[1744311716517,25.19240287,111.47,111.44,6.6343]
[1744311717217,25.19240287,111.45,111.43,90.86]
[1744311717420,25.19240287,111.45,111.43,9.86]
[1744311718222,25.19240287,111.45,111.42,6.4441]
[1744311718426,25.19240287,111.45,111.41,55.82960287]
[1744311719001,25.19240287,111.44,111.41,30.6372]
[1744311719308,25.19240287,111.44,111.41,28.9753]
[1744311719508,25.19240287,111.43,111.39,87.4857]
[1744311719715,25.19240287,111.44,111.4,25.19240287]
[1744311720500,25.19240287,111.44,111.39,15.4629]
[1744311720702,34.16630287,111.44,111.4,34.16880287]
[1744311720900,34.16530287,111.45,111.41,25.19240287]
[1744311721222,25.19240287,111.44,111.42,9.84]
[1744311721724,8.9729,111.45,111.42,9.84]
[1744311721911,25.19240287,111.44,111.42,9.84]
[1744311722317,34.16590287,111.44,111.42,9.84]
[1744311722529,25.19240287,111.43,111.42,9.84]
[1744311722722,25.19240287,111.43,111.38,55.17456444]
[1744311722934,25.19240287,111.4,111.38,9.84]
[1744311723934,25.19240287,111.4,111.36,54.32361043]
[1744311724127,25.19240287,111.38,111.36,0.063]
[1744311724315,34.17070287,111.38,111.36,0.063]
[1744311724824,25.19240287,111.37,111.36,0.063]
[1744311725327,25.19240287,111.39,111.36,0.063]
[1744311725830,34.16980287,111.39,111.36,0.063]
[1744311726531,8.9772,111.4,111.36,25.25540287]
[1744311726734,34.16960287,111.4,111.36,25.25540287]
[1744311727338,34.16960287,111.4,111.36,34.23490287]
[1744311728441,8.9752,111.42,111.38,25.19240287]
[1744311728649,34.16760287,111.42,111.39,9.86]
[1744311729344,28.7705,111.45,111.4,25.19240287]
[1744311729517,8.9734,111.44,111.41,25.19240287]
[1744311730045,8.973,111.45,111.42,25.19240287]
[1744311730242,34.16540287,111.45,111.41,25.33456444]
[1744311731239,34.16540287,111.45,111.41,34.31016444]
[1744311731933,8.973,111.45,111.42,25.19240287]
[1744311732335,8.9702,111.48,111.44,25.19240287]
[1744311732639,34.16260287,111.48,111.44,35.03240287]
[1744311732937,34.19190287,111.49,111.45,25.19240287]
[1744311733239,0.03,111.49,111.47,25.19240287]
[1744311733826,34.19190287,111.49,111.45,6.3533]
[1744311734023,25.19240287,111.48,111.45,6.3533]
[1744311734222,34.16340287,111.47,111.44,9.84]
[1744311735342,34.16300287,111.48,111.44,44.00560287]
[1744311735847,34.16300287,111.48,111.44,44.00580287]
[1744311736041,34.16300287,111.48,111.44,35.03240287]
[1744311736841,34.16300287,111.48,111.44,44.00560287]
[1744311738246,0.03,111.49,111.44,44.00560287]
[1744311738426,25.22240287,111.49,111.44,44.00560287]
[1744311739043,25.22240287,111.49,111.44,64.00560287]
[1744311739351,0.03,111.49,111.46,25.19240287]
[1744311740320,0.03,111.49,111.46,34.16380287]
[1744311741025,0.03,111.49,111.46,54.16380287]
[1744311741620,0.03,111.49,111.47,25.19240287]
[1744311742441,0.03,111.49,111.48,25.19240287]
[1744311744733,0.03,111.49,111.48,34.16260287]
[1744311744922,0.03,111.49,111.48,25.19240287]
[1744311745123,0.03,111.49,111.47,34.16300287]
[1744311745839,0.03,111.49,111.46,54.16390287]
[1744311746057,0.03,111.49,111.46,28.9715]
[1744311746353,0.03,111.49,111.46,54.16390287]
[1744311747038,0.03,111.49,111.47,25.19240287]
[1744311747837,0.03,111.49,111.47,34.16290287]
[1744311748248,0.03,111.49,111.48,25.19240287]
[1744311748632,0.03,111.49,111.47,34.16290287]
[1744311749563,0.03,111.49,111.47,8.9705]
[1744311749746,0.03,111.49,111.47,34.16290287]
[1744311750053,0.03,111.49,111.48,9.84]
[1744311752657,25.22240287,111.49,111.46,9.84]
[1744311752849,25.19240287,111.48,111.46,9.84]
[1744311753648,34.19180287,111.49,111.46,18.8118]
[1744311753856,34.19180287,111.49,111.46,9.84]
[1744311754352,25.19240287,111.48,111.46,9.84]
[1744311754862,34.19180287,111.49,111.46,9.84]
[1744311756862,25.19240287,111.48,111.46,9.84]
[1744311757159,34.19180287,111.49,111.45,34.16460287]
[1744311757357,25.19240287,111.48,111.44,28.973]
[1744311757736,34.19180287,111.49,111.45,25.19240287]
[1744311758437,8.9994,111.49,111.45,34.16490287]
[1744311758637,34.19180287,111.49,111.46,9.84]
[1744311758859,25.19240287,111.48,111.46,9.84]
[1744311760546,34.19180287,111.49,111.46,9.84]
[1744311760857,25.19240287,111.48,111.46,9.84]
[1744311761353,16.06344615,111.48,111.46,9.84]
[1744311762054,25.06284615,111.49,111.46,9.84]
[1744311762356,0.03,111.49,111.46,9.84]
[1744311762662,16.06344615,111.48,111.46,9.84]
[1744311762857,0.03,111.49,111.46,9.84]
[1744311763162,16.06344615,111.48,111.46,9.84]
[1744311763541,16.06344615,111.48,111.44,45.03644615]
[1744311764249,24.56294615,111.49,111.45,16.06344615]
[1744311764660,1.5578,111.5,111.45,16.06344615]
[1744311764860,8.999,111.5,111.47,16.06344615]
[1744311765063,8.999,111.5,111.48,9.84]
[1744311765359,25.06244615,111.5,111.48,9.84]
[1744311765758,8.999,111.5,111.48,9.84]
[1744311766155,0.03,111.5,111.48,34.87364615]
[1744311767171,0.03,111.5,111.48,18.8102]
[1744311767671,0.03,111.5,111.48,34.87364615]
[1744311768163,0.03,111.5,111.48,25.90344615]
[1744311769869,0.03,111.5,111.48,9.84]
[1744311770371,0.03,111.5,111.48,34.87354615]
[1744311770759,0.03,111.5,111.48,25.90344615]
[1744311771152,0.03,111.5,111.48,9.84]
[1744311772874,0.03,111.5,111.48,25.90344615]
[1744311773249,0.03,111.5,111.48,9.84]
[1744311773456,0.03,111.5,111.48,18.8101]
[1744311774059,0.03,111.5,111.48,34.87354615]
[1744311774768,0.03,111.5,111.49,16.06344615]
[1744311775470,0.03,111.5,111.49,35.13957972]
[1744311775852,0.03,111.5,111.49,16.20560772]
[1744311776052,0.03,111.5,111.49,16.06344615]
[1744311777276,0.03,111.5,111.49,25.03284615]
[1744311778671,0.03,111.5,111.49,25.17500772]
[1744311778847,0.03,111.5,111.49,44.10897972]
[1744311780077,0.03,111.52,111.51,46.14216157]
[1744311780287,0.03,111.52,111.51,61.70437972]
[1744311781977,0.03,111.52,111.51,70.67217972]
[1744311782594,0.03,111.55,111.53,20.0]
[1744311782895,0.03,111.55,111.54,25.88344615]
[1744311783268,0.03,111.55,111.54,9.82]
[1744311783569,0.03,111.55,111.54,26.02560772]
[1744311783893,0.03,111.55,111.54,44.95957972]
[1744311784066,0.03,111.55,111.54,34.99090772]
[1744311785388,0.03,111.55,111.54,25.88344615]
[1744311785589,0.03,111.55,111.54,9.82]
[1744311786374,0.03,111.55,111.54,25.88344615]
[1744311788397,0.03,111.55,111.54,34.84874615]
[1744311790798,0.03,111.55,111.54,9.82]
[1744311791303,16.09344615,111.55,111.49,45.88344615]
[1744311791472,16.06344615,111.52,111.49,9.82]
[1744311791875,0.03,111.55,111.49,9.82]
[1744311791876,16.06344615,111.51,111.49,9.82]
[1744311792074,16.06344615,111.52,111.49,9.82]
[1744311794483,25.02994615,111.53,111.49,34.85274615]
[1744311794684,16.06344615,111.52,111.49,9.82]
[1744311795898,25.02994615,111.53,111.49,25.88344615]
[1744311796284,25.02994615,111.53,111.49,34.85274615]
[1744311796581,8.9665,111.53,111.49,34.85274615]
[1744311796782,25.02994615,111.53,111.49,34.85274615]
[1744311797295,16.06344615,111.52,111.49,9.82]
[1744311797476,8.9665,111.53,111.49,34.85274615]
[1744311797672,25.02994615,111.53,111.49,34.85274615]
[1744311797894,25.02994615,111.53,111.49,25.88344615]
[1744311798099,16.06344615,111.52,111.49,9.82]
[1744311798707,8.9678,111.51,111.49,9.82]
[1744311799080,25.03074615,111.52,111.49,9.82]
[1744311800101,8.9673,111.52,111.49,9.82]
[1744311800300,8.9673,111.52,111.49,25.88344615]
[1744311800994,25.03074615,111.52,111.49,9.82]
[1744311801301,8.9664,111.53,111.5,16.06344615]
[1744311801498,8.9657,111.54,111.51,16.06344615]
[1744311801699,16.09344615,111.55,111.51,16.06344615]
[1744311801877,0.03,111.55,111.51,16.06344615]
[1744311802078,16.09344615,111.55,111.51,16.06344615]
[1744311802491,0.03,111.55,111.52,16.06344615]
[1744311802702,0.03,111.55,111.53,16.06344615]
[1744311802896,0.03,111.55,111.54,9.82]
[1744311806681,16.09344615,111.55,111.54,9.82]
[1744311807284,26.68264615,111.55,111.54,9.82]
[1744311807483,26.68264615,111.55,111.5,9.82]
[1744311807707,16.06344615,111.54,111.5,9.82]
[1744311807909,10.6192,111.55,111.5,25.88344615]
[1744311808085,16.06344615,111.54,111.5,25.88344615]
[1744311808607,26.68264615,111.55,111.51,16.06344615]
[1744311808904,16.06344615,111.54,111.5,9.82]
[1744311809113,33.0306,111.55,111.5,9.82]
[1744311809284,16.06344615,111.53,111.5,9.82]
[1744311809483,16.06344615,111.52,111.5,9.82]
[1744311810387,16.06344615,111.53,111.5,9.82]
[1744311812609,25.03034615,111.53,111.5,9.82]
[1744311813019,16.06344615,111.51,111.47,22.63394615]
[1744311813191,16.06344615,111.51,111.47,31.60494615]
[1744311813392,16.06344615,111.52,111.48,16.06344615]
[1744311813592,16.06344615,111.51,111.47,31.60494615]
[1744311814113,16.06344615,111.52,111.48,16.06344615]
[1744311814302,8.9669,111.53,111.49,16.06344615]
[1744311814632,25.03034615,111.53,111.49,16.06344615]
[1744311815415,25.03034615,111.53,111.48,25.03324615]
[1744311817305,25.03034615,111.53,111.47,15.541]
[1744311817510,16.06344615,111.51,111.47,6.5705]
[1744311817808,16.06344615,111.51,111.47,22.63394615]
[1744311818002,16.06344615,111.51,111.47,31.60484615]
[1744311819017,47.44574615,111.53,111.48,16.06344615]
[1744311819187,47.44574615,111.53,111.47,15.5414]
[1744311819390,16.06344615,111.51,111.47,31.60484615]
[1744311819608,16.06344615,111.51,111.47,25.03434615]
[1744311820188,16.06344615,111.5,111.46,45.88344615]
[1744311820506,16.06344615,111.5,111.46,9.82]
[1744311820817,16.06344615,111.51,111.47,16.06344615]
[1744311821198,31.3849,111.52,111.46,34.85514615]
[1744311821406,16.06344615,111.51,111.47,25.03434615]
[1744311822821,16.06344615,111.52,111.48,16.06344615]
[1744311823614,16.06344615,111.51,111.48,8.9701]
[1744311824016,16.06344615,111.51,111.47,8.9705]
[1744311824217,16.06344615,111.51,111.47,25.03394615]
[1744311824821,22.4154,111.53,111.49,16.06344615]
[1744311824822,25.03004615,111.53,111.49,16.06344615]
[1744311825020,25.03004615,111.53,111.5,25.86344615]
[1744311825021,8.9666,111.53,111.5,25.86344615]
[1744311825398,25.02914615,111.54,111.5,18.768]
[1744311825713,25.02914615,111.54,111.5,34.83144615]
[1744311826522,8.9657,111.54,111.51,16.06344615]
[1744311827120,26.68344615,111.55,111.51,16.06344615]
[1744311827297,16.06344615,111.54,111.5,18.768]
[1744311827498,16.06344615,111.54,111.5,34.83144615]
[1744311827713,16.09344615,111.55,111.51,16.06344615]
[1744311828029,25.02874615,111.54,111.5,41.30984615]
[1744311828428,25.02874615,111.54,111.5,22.54184615]
[1744311828624,25.02874615,111.54,111.48,45.17540772]
[1744311828625,16.06344615,111.52,111.48,45.17540772]
[1744311828920,16.06344615,111.53,111.49,16.06344615]
[1744311829130,16.06344615,111.52,111.48,45.17540772]
[1744311829513,16.06344615,111.53,111.49,16.06344615]
[1744311829717,16.06344615,111.52,111.48,45.17540772]
[1744311830319,16.06344615,111.52,111.48,45.03324615]
[1744311830823,25.03114615,111.52,111.48,45.03324615]
[1744311831436,25.03114615,111.52,111.49,9.8]
[1744311833832,16.06344615,111.5,111.49,9.8]
[1744311834239,16.06344615,111.5,111.44,6.1021]
[1744311834451,16.06344615,111.46,111.44,6.1021]
[1744311834734,16.06344615,111.47,111.44,15.0755]
[1744311834940,16.06344615,111.48,111.44,22.16554615]
[1744311835142,16.06344615,111.46,111.44,6.1021]
[1744311835433,26.0,111.51,111.44,31.13884615]
[1744311835937,48.4209,111.51,111.44,51.13884615]
[1744311836117,8.967,111.52,111.49,16.06344615]
[1744311836308,25.03044615,111.52,111.49,9.8]
[1744311836512,8.967,111.52,111.49,25.86344615]
[1744311836731,16.06344615,111.51,111.49,9.8]
[1744311836932,8.967,111.52,111.49,25.86344615]
[1744311837158,25.03044615,111.52,111.49,9.8]
[1744311837341,16.06344615,111.51,111.49,9.8]
[1744311837720,25.03044615,111.52,111.49,9.8]
[1744311838939,16.06344615,111.51,111.49,9.8]
[1744311839141,25.03154615,111.51,111.49,9.8]
[1744311840732,16.06344615,111.52,111.49,18.7693]
[1744311841047,25.03004615,111.53,111.49,34.83274615]
[1744311842249,16.06344615,111.52,111.49,9.8]
[1744311844248,16.06344615,111.52,111.49,18.7693]
[1744311844430,25.03054615,111.52,111.49,9.8]
[1744311845615,16.06344615,111.51,111.49,9.8]
[1744311845844,16.06344615,111.51,111.47,36.45374615]
[1744311846340,8.9686,111.5,111.47,27.48284615]
[1744311846545,16.06344615,111.48,111.47,9.8]
[1744311846720,8.9686,111.5,111.47,25.86344615]
[1744311846920,8.9661,111.53,111.48,16.06344615]
[1744311847121,16.06344615,111.52,111.47,38.7708]
[1744311847334,16.06344615,111.51,111.47,18.7708]
[1744311847537,16.06344615,111.5,111.47,9.8]
[1744311847751,16.06344615,111.51,111.47,34.83434615]
[1744311847937,31.3815,111.53,111.47,34.83434615]
[1744311847938,8.9661,111.53,111.49,16.06344615]
[1744311848258,25.02954615,111.53,111.49,22.57534615]
[1744311848425,16.06344615,111.52,111.49,6.5119]
[1744311848751,16.06344615,111.5,111.47,18.7705]
[1744311848953,8.9661,111.53,111.48,16.06344615]
[1744311849156,8.9661,111.53,111.47,38.7705]
[1744311849446,25.02954615,111.53,111.49,16.06344615]
[1744311849663,16.06344615,111.52,111.48,16.06344615]
[1744311849822,16.06344615,111.52,111.47,38.7705]
[1744311850024,16.06344615,111.51,111.47,54.83394615]
[1744311850245,16.06344615,111.52,111.48,16.06344615]
[1744311850528,25.03044615,111.52,111.49,8.9694]
[1744311850743,8.967,111.52,111.49,25.03284615]
[1744311850951,8.967,111.52,111.49,16.06344615]
[1744311851147,25.03044615,111.52,111.48,8.9697]
[1744311851351,25.03044615,111.52,111.48,25.03314615]
[1744311852251,25.02994615,111.53,111.49,25.03274615]
[1744311852453,16.06344615,111.52,111.48,16.06344615]
[1744311853049,16.06344615,111.52,111.48,25.03324615]
[1744311854045,16.06344615,111.5,111.47,9.8]
[1744311854248,25.03294615,111.49,111.47,9.8]
[1744311854854,16.06344615,111.48,111.47,9.8]
[1744311856338,25.03364615,111.48,111.47,9.8]
[1744311856855,8.9702,111.48,111.47,9.8]
[1744311857164,25.03364615,111.48,111.44,0.063]
[1744311857355,25.10757444,111.46,111.44,0.063]
[1744311857554,25.10757444,111.47,111.44,0.063]
[1744311858861,25.10757444,111.46,111.44,0.063]
[1744311859248,8.9714,111.47,111.44,0.063]
[1744311859249,25.10757444,111.45,111.44,0.063]
[1744311860557,25.10757444,111.48,111.44,25.17057444]
[1744311860763,34.07617444,111.5,111.46,25.10757444]
[1744311860944,25.10757444,111.49,111.46,9.8]
[1744311861763,34.07747444,111.49,111.46,9.8]
[1744311862458,25.10757444,111.48,111.46,9.8]
[1744311863452,34.07747444,111.49,111.46,9.8]
[1744311863643,25.10757444,111.48,111.46,9.8]
[1744311863970,34.07747444,111.49,111.46,19.8]
[1744311864757,34.07747444,111.49,111.46,10.0]
[1744311865067,25.10757444,111.48,111.46,10.0]
[1744311865272,8.9699,111.49,111.46,10.0]
[1744311865440,25.10757444,111.48,111.46,10.0]
[1744311865635,23.9996,111.51,111.46,10.0]
[1744311865867,10.4936,111.54,111.48,25.10757444]
[1744311866050,34.07337444,111.54,111.49,25.10757444]
[1744311866244,25.10757444,111.52,111.5,9.8]
[1744311869065,34.07457444,111.52,111.5,9.8]
[1744311871374,25.10757444,111.51,111.47,6.2276]
[1744311871673,25.10757444,111.51,111.47,31.33517444]
[1744311871857,8.967,111.52,111.47,31.33517444]
[1744311872066,25.10757444,111.51,111.47,31.33517444]
[1744311872572,25.10757444,111.51,111.47,40.30607444]
[1744311873257,34.07457444,111.52,111.48,25.10757444]
[1744311874063,25.10757444,111.51,111.47,40.30607444]
[1744311875173,34.07547444,111.51,111.47,40.30607444]
[1744311876261,25.10757444,111.51,111.47,40.30607444]
[1744311876770,34.07547444,111.51,111.47,15.1985]
[1744311876951,34.07547444,111.51,111.47,40.30607444]
[1744311877272,25.02389104,111.51,111.47,31.25449104]
[1744311877468,25.02389104,111.51,111.47,22.28359104]
[1744311877679,16.05599104,111.49,111.46,30.3612]
[1744311879275,16.05599104,111.47,111.46,10.0]
[1744311880876,22.4215,111.5,111.46,10.0]
[1744311881180,16.05599104,111.47,111.46,10.0]
[1744311881372,25.10958838,111.47,111.46,10.0]
[1744311882859,24.60958838,111.47,111.46,10.0]
[1744311883182,33.58058838,111.47,111.46,10.0]
[1744311884073,24.60958838,111.47,111.46,10.0]
[1744311884880,33.58058838,111.47,111.46,10.0]
[1744311886381,24.60958838,111.47,111.46,10.0]
[1744311886560,25.10958838,111.47,111.46,10.0]
[1744311887672,34.08058838,111.47,111.46,10.0]
[1744311888978,58.15968838,111.47,111.44,0.063]
[1744311889158,25.10958838,111.45,111.44,0.063]
[1744311889359,34.08218838,111.45,111.44,0.063]
[1744311889554,8.9726,111.45,111.44,0.063]
[1744311889767,34.08218838,111.45,111.44,0.063]
[1744311889960,25.10958838,111.45,111.44,0.063]
[1744311890181,8.9702,111.48,111.44,0.063]
[1744311890361,25.10958838,111.46,111.44,0.063]
[1744311892796,34.08158838,111.46,111.44,0.063]
[1744311893084,25.10958838,111.45,111.44,0.063]
[1744311893581,34.08218838,111.45,111.44,0.063]
[1744311900768,25.10958838,111.45,111.44,0.063]
[1744311900965,25.10958838,111.47,111.44,0.063]
[1744311902067,8.9705,111.48,111.44,0.063]
[1744311902274,25.10958838,111.47,111.44,0.063]
[1744311902498,25.10958838,111.46,111.44,0.063]
[1744311903070,8.9705,111.48,111.44,0.063]
[1744311903071,25.10958838,111.45,111.44,0.063]
[1744311903273,16.08042375,111.45,111.44,0.063]
[1744311903573,31.396,111.48,111.44,0.063]
[1744311903776,16.08042375,111.47,111.44,0.063]
[1744311903974,16.08042375,111.47,111.44,9.863]
[1744311904276,16.08042375,111.46,111.44,9.863]
[1744311905480,25.05222375,111.46,111.44,9.863]
[1744311906093,16.08042375,111.46,111.44,9.863]
[1744311906477,8.9705,111.48,111.44,18.8364]
[1744311906680,25.05092375,111.48,111.44,34.91682375]
[1744311906881,25.05002375,111.49,111.45,22.54012375]
[1744311907088,25.04932375,111.5,111.46,16.08042375]
[1744311907272,0.03,111.52,111.47,25.05102375]
[1744311907473,16.08042375,111.5,111.47,8.9706]
[1744311907672,16.08042375,111.51,111.47,25.05102375]
[1744311908695,8.9973,111.52,111.47,25.05102375]
[1744311908878,16.08042375,111.51,111.47,25.05102375]
[1744311909078,8.9973,111.52,111.47,25.05102375]
[1744311909079,25.07772375,111.52,111.47,25.05102375]
[1744311909274,34.08243081,111.52,111.47,34.05573081]
[1744311909475,34.08243081,111.52,111.48,25.08513081]
[1744311909677,25.11513081,111.52,111.48,25.08513081]
[1744311909895,0.03,111.52,111.49,36.47743081]
[1744311910190,34.08213081,111.52,111.49,11.3923]
[1744311910490,25.08513081,111.5,111.49,9.8]
[1744311911879,34.05363081,111.51,111.49,9.8]
[1744311912278,25.11513081,111.52,111.49,18.7693]
[1744311915611,34.08213081,111.52,111.49,18.7693]
[1744311915992,0.03,111.52,111.49,43.85443081]